[Event "European Online Club-ch-I 2021"]
[Site "Online"]
[Date "2021.03.27"]
[Round "4.20"]
[White "Nayhebaver, Martin"]
[Black "Ibarra Jerez, Jose Carlos"]
[Result "0-1"]
[ECO "B45"]
[WhiteElo "2485"]
[BlackElo "2553"]
[Annotator "ChessBase"]
[PlyCount "90"]
[EventDate "2021.03.27"]
[EventType "team-tourn"]
[EventCountry "NET"]
[SourceTitle "playchess.com"]
[Source "ChessBase"]
[SourceQuality "1"]
[TimeControl "900+5"]

1. e4 {[%emt 0:00:00]} c5 {[%emt 0:00:04]} 2. Nf3 {[%emt 0:00:05]} e6 {[%emt 0:00:12]} 3. d4 {[%emt 0:00:09]} cxd4 {[%emt 0:00:00]} 4. Nxd4 {[%emt 0:00:01]} Nf6 {[%emt 0:00:04]} 5. Nc3 {[%emt 0:00:06]} Nc6 {[%emt 0:00:02]} 6. Ndb5 {[%emt 0:00:36]} Bc5 {[%emt 0:00:11]} 7. Bf4 {[%emt 0:00:15]} O-O {[%emt 0:00:08]} 8. Bc7 {[%emt 0:00:12]} Qe7 {[%emt 0:00:05]} 9. Bd6 {[%emt 0:00:03]} Bxd6 {[%emt 0:00:03]} 10. Qxd6 {[%emt 0:00:06]} Qd8 {[%emt 0:00:13]} 11. Nc7 {[%emt 0:00:40]} Rb8 {[%emt 0:00:10]} 12. a4 {[%emt 0:01:33]} a6 {[%emt 0:00:22]} 13. Be2 {[%emt 0:00:26]} Ne8 {[%emt 0:03:22]} 14. Nxe8 {[%emt 0:00:07]} Rxe8 {[%emt 0:00:00]} 15. O-O {[%emt 0:01:24]} Qb6 {[%emt 0:00:54]} 16. Rab1 {[%emt 0:03:13]} Qb4 {[%emt 0:01:35]} 17. Qg3 {[%emt 0:00:56]} d6 {[%emt 0:00:21]} 18. f4 {[%emt 0:01:28]} b5 {[%emt 0:00:32]} 19. axb5 {[%emt 0:00:09]} axb5 {[%emt 0:00:03]} 20. Kh1 {[%emt 0:00:22]} Nd4 {[%emt 0:01:06]} 21. Bd3 {[%emt 0:00:31]} Bb7 {[%emt 0:00:18]} 22. e5 {[%emt 0:01:33]} Qc5 {[%emt 0:01:44]} 23. b4 {[%emt 0:01:42]} Qc7 {[%emt 0:00:41]} 24. exd6 {[%emt 0:00:49]} Qxd6 {[%emt 0:00:04]} 25. Ne4 {[%emt 0:00:24]} Bxe4 {[%emt 0:00:21]} 26. Bxe4 {[%emt 0:00:01]} f5 {[%emt 0:00:05]} 27. Bd3 {[%emt 0:00:03]} Rbc8 {[%emt 0:00:05]} 28. Qf2 {[%emt 0:00:12]} Red8 {[%emt 0:00:17]} 29. h3 {[%emt 0:00:03]} h6 {[%emt 0:00:16]} 30. Rfd1 {[%emt 0:00:04]} Qc6 {[%emt 0:01:39]} 31. Qe1 {[%emt 0:00:09]} Rd5 {[%emt 0:00:25]} 32. Qe3 {[%emt 0:00:08]} Kh7 {[%emt 0:00:15]} 33. Rbc1 {[%emt 0:00:05]} Qc3 {[%emt 0:00:06]} 34. Kh2 {[%emt 0:00:01]} Kh8 {[%emt 0:00:16]} 35. Qf2 {[%emt 0:00:07]} Qxb4 {[%emt 0:00:08]} 36. Rb1 {[%emt 0:00:02]} Qc3 {[%emt 0:00:03]} 37. Rdc1 {[%emt 0:00:01]} b4 {[%emt 0:00:02]} 38. Qe1 {[%emt 0:00:13]} b3 {[%emt 0:00:12]} 39. cxb3 {[%emt 0:00:02]} Qxd3 {[%emt 0:00:14]} 40. Rxc8+ {[%emt 0:00:02]} Kh7 {[%emt 0:00:00]} 41. b4 {[%emt 0:00:10]} Ne2 {[%emt 0:00:18]} 42. Ra1 {[%emt 0:00:09]} Qe3 {[%emt 0:00:08]} 43. Raa8 {[%emt 0:00:08]} Rd2 {[%emt 0:00:17]} 44. Rh8+ {[%emt 0:00:03]} Kg6 {[%emt 0:00:00]} 45. Qh4 {[%emt 0:00:03]} Qg1# {[%emt 0:00:11]} 0-1

[Event "European Online Club-ch-I 2021"]
[Site "Online"]
[Date "2021.03.27"]
[Round "5.2"]
[White "Verdier, Patrice"]
[Black "Heberla, Bartlomiej"]
[Result "0-1"]
[ECO "E94"]
[WhiteElo "2109"]
[BlackElo "2556"]
[Annotator "ChessBase"]
[PlyCount "94"]
[EventDate "2021.03.27"]
[EventType "team-tourn"]
[EventCountry "NET"]
[SourceTitle "playchess.com"]
[Source "ChessBase"]
[SourceQuality "1"]
[TimeControl "900+5"]

1. d4 {[%emt 0:00:00]} Nf6 {[%emt 0:00:13]} 2. c4 {[%emt 0:00:04]} d6 {[%emt 0:00:02]} 3. Nc3 {[%emt 0:00:02]} Nbd7 {[%emt 0:00:02]} 4. e4 {[%emt 0:00:06]} e5 {[%emt 0:00:01]} 5. Nf3 {[%emt 0:00:04]} g6 {[%emt 0:00:02]} 6. Be2 {[%emt 0:00:27]} Bg7 {[%emt 0:00:06]} 7. O-O {[%emt 0:00:03]} O-O {[%emt 0:00:02]} 8. Be3 {[%emt 0:00:41]} c6 {[%emt 0:00:03]} 9. Qd2 {[%emt 0:00:09]} Ng4 {[%emt 0:01:27]} 10. Bg5 {[%emt 0:00:05]} f6 {[%emt 0:00:07]} 11. Bh4 {[%emt 0:00:06]} g5 {[%emt 0:00:29]} 12. Bg3 {[%emt 0:00:06]} h5 {[%emt 0:00:09]} 13. h3 {[%emt 0:00:25]} Nh6 {[%emt 0:00:02]} 14. dxe5 {[%emt 0:00:34]} dxe5 {[%emt 0:00:06]} 15. Rfd1 {[%emt 0:00:40]} h4 {[%emt 0:00:06]} 16. Bh2 {[%emt 0:00:04]} Qe7 {[%emt 0:00:04]} 17. Qd6 {[%emt 0:00:35]} Qxd6 {[%emt 0:00:02]} 18. Rxd6 {[%emt 0:00:01]} Nf7 {[%emt 0:00:01]} 19. Rd2 {[%emt 0:00:17]} Nc5 {[%emt 0:00:02]} 20. b4 {[%emt 0:00:46]} Ne6 {[%emt 0:00:03]} 21. g3 {[%emt 0:00:01]} hxg3 {[%emt 0:00:22]} 22. fxg3 {[%emt 0:00:16]} g4 {[%emt 0:00:02]} 23. hxg4 {[%emt 0:00:12]} Bh6 {[%emt 0:00:01]} 24. Rdd1 {[%emt 0:00:48]} a5 {[%emt 0:00:20]} 25. a3 {[%emt 0:00:30]} Nd4 {[%emt 0:00:18]} 26. Kf2 {[%emt 0:01:14]} Nc2 {[%emt 0:00:31]} 27. Ra2 {[%emt 0:00:27]} Ne3 {[%emt 0:00:07]} 28. Rb1 {[%emt 0:01:10]} Nxg4+ {[%emt 0:01:35]} 29. Kg2 {[%emt 0:00:10]} axb4 {[%emt 0:00:14]} 30. axb4 {[%emt 0:00:15]} Ne3+ {[%emt 0:00:04]} 31. Kf2 {[%emt 0:00:12]} Be6 {[%emt 0:00:01]} 32. Nd2 {[%emt 0:00:36]} Rxa2 {[%emt 0:00:44]} 33. Nxa2 {[%emt 0:00:02]} Nd6 {[%emt 0:00:47]} 34. Bg1 {[%emt 0:02:32]} Ra8 {[%emt 0:00:36]} 35. Nc3 {[%emt 0:00:18]} Ndxc4 {[%emt 0:00:24]} 36. Nxc4 {[%emt 0:00:05]} Nxc4 {[%emt 0:00:02]} 37. Bxc4 {[%emt 0:00:22]} Bxc4 {[%emt 0:00:02]} 38. Kg2 {[%emt 0:00:26]} Ra3 {[%emt 0:00:18]} 39. Nd1 {[%emt 0:00:11]} Bd3 {[%emt 0:00:13]} 40. Rb2 {[%emt 0:00:13]} Bxe4+ {[%emt 0:00:02]} 41. Kh3 {[%emt 0:00:12]} Bf3 {[%emt 0:00:13]} 42. Nf2 {[%emt 0:00:14]} Ra1 {[%emt 0:00:07]} 43. Bh2 {[%emt 0:00:05]} Kf7 {[%emt 0:00:10]} 44. Nd3 {[%emt 0:00:13]} Ra8 {[%emt 0:00:13]} 45. Rf2 {[%emt 0:00:14]} e4 {[%emt 0:00:22]} 46. Ne1 {[%emt 0:00:08]} Be3 {[%emt 0:00:03]} 47. Rb2 {[%emt 0:00:07]} Rh8# {[%emt 0:00:03]} 0-1

[Event "European Online Club-ch-I 2021"]
[Site "Online"]
[Date "2021.03.27"]
[Round "5.3"]
[White "Polak, Tomas"]
[Black "Van Hoolandt, Patrick"]
[Result "1-0"]
[ECO "E24"]
[WhiteElo "2553"]
[BlackElo "2017"]
[Annotator "ChessBase"]
[PlyCount "59"]
[EventDate "2021.03.27"]
[EventType "team-tourn"]
[EventCountry "NET"]
[SourceTitle "playchess.com"]
[Source "ChessBase"]
[SourceQuality "1"]
[TimeControl "900+5"]

1. d4 {[%emt 0:00:00]} Nf6 {[%emt 0:00:04]} 2. c4 {[%emt 0:00:03]} e6 {[%emt 0:00:02]} 3. Nc3 {[%emt 0:00:02]} Bb4 {[%emt 0:00:02]} 4. f3 {[%emt 0:00:05]} d5 {[%emt 0:00:03]} 5. a3 {[%emt 0:00:03]} Bxc3+ {[%emt 0:00:06]} 6. bxc3 {[%emt 0:00:02]} O-O {[%emt 0:00:07]} 7. e3 {[%emt 0:01:38]} c5 {[%emt 0:00:23]} 8. cxd5 {[%emt 0:00:27]} Nxd5 {[%emt 0:00:35]} 9. Qd2 {[%emt 0:00:16]} f5 {[%emt 0:00:17]} 10. Nh3 {[%emt 0:00:15]} Nc6 {[%emt 0:00:27]} 11. Bc4 {[%emt 0:00:10]} Qh4+ {[%emt 0:01:02]} 12. Nf2 {[%emt 0:00:36]} Nf6 {[%emt 0:00:22]} 13. O-O {[%emt 0:00:21]} Rd8 {[%emt 0:00:52]} 14. Qe2 {[%emt 0:00:49]} Kh8 {[%emt 0:00:15]} 15. Nd3 {[%emt 0:02:28]} cxd4 {[%emt 0:01:22]} 16. cxd4 {[%emt 0:00:08]} Nxd4 {[%emt 0:00:42]} 17. exd4 {[%emt 0:00:09]} Qxd4+ {[%emt 0:00:02]} 18. Nf2 {[%emt 0:00:04]} Qxa1 {[%emt 0:00:03]} 19. Bb2 {[%emt 0:00:02]} Qxf1+ {[%emt 0:00:12]} 20. Kxf1 {[%emt 0:00:12]} b5 {[%emt 0:00:35]} 21. Bxb5 {[%emt 0:00:16]} Rb8 {[%emt 0:00:02]} 22. Be5 {[%emt 0:01:23]} Rb7 {[%emt 0:00:30]} 23. g3 {[%emt 0:00:11]} Rd5 {[%emt 0:00:53]} 24. a4 {[%emt 0:00:25]} Nd7 {[%emt 0:00:55]} 25. Bc3 {[%emt 0:00:26]} e5 {[%emt 0:00:13]} 26. Nd3 {[%emt 0:00:11]} e4 {[%emt 0:00:47]} 27. Nf4 {[%emt 0:00:20]} Rc5 {[%emt 0:00:11]} 28. Qd2 {[%emt 0:00:13]} Rbc7 {[%emt 0:01:46]} 29. Nd5 {[%emt 0:00:07]} e3 {[%emt 0:00:17]} 30. Qxe3 {[%emt 0:00:15]} 1-0

[Event "European Online Club-ch-I 2021"]
[Site "Online"]
[Date "2021.03.27"]
[Round "5.4"]
[White "Meylan, Pierre"]
[Black "Vavra, Michal"]
[Result "1-0"]
[ECO "B74"]
[WhiteElo "2053"]
[BlackElo "1986"]
[Annotator "NA"]
[PlyCount "77"]
[EventDate "2021.03.27"]
[EventType "team-tourn"]
[EventCountry "NET"]
[SourceTitle "playchess.com"]
[Source "ChessBase"]
[SourceQuality "1"]
[TimeControl "900+5"]

1. e4 {[%emt 0:00:00]} c5 {[%emt 0:00:05]} 2. Nf3 {[%emt 0:00:04]} d6 {[%emt 0:00:10]} 3. d4 {[%emt 0:00:03]} cxd4 {[%emt 0:00:04]} 4. Nxd4 {[%emt 0:00:02]} Nf6 {[%emt 0:00:03]} 5. Nc3 {[%emt 0:00:02]} g6 {[%emt 0:00:33]} 6. Be2 {[%emt 0:00:05]} Bg7 {[%emt 0:00:18]} 7. O-O {[%emt 0:00:08]} O-O {[%emt 0:00:12]} 8. Be3 {[%emt 0:00:06]} Nc6 {[%emt 0:00:49]} 9. f4 {[%emt 0:00:13]} Bd7 {[%emt 0:00:58]} 10. Bf3 {[%emt 0:00:17]} Rc8 {[%emt 0:01:00]} 11. Nb3 {[%emt 0:00:16]} Be6 {[%emt 0:01:32]} 12. Nd5 {[%emt 0:00:42]} Nd7 {[%emt 0:01:42]} 13. c3 {[%emt 0:00:42]} Bxd5 {[%emt 0:00:23]} 14. exd5 {[%emt 0:01:07]} Na5 {[%emt 0:00:05]} 15. Nxa5 {[%emt 0:02:33]} Qxa5 {[%emt 0:00:05]} 16. Kh1 {[%emt 0:00:23]} Nb6 {[%emt 0:01:39]} 17. Qe2 {[%emt 0:03:34]} Nxd5 {[%emt 0:01:58]} 18. Bxd5 {[%emt 0:01:45]} Qxd5 {[%emt 0:00:05]} 19. Bxa7 {[%emt 0:00:10]} Rfe8 {[%emt 0:00:41]} 20. Rfd1 {[%emt 0:00:34]} Qf5 {[%emt 0:00:21]} 21. Qf3 {[%emt 0:00:32]} Rc4 {[%emt 0:00:45]} 22. Be3 {[%emt 0:00:24]} Qb5 {[%emt 0:00:23]} 23. Qe2 {[%emt 0:00:13]} Rb4 {[%emt 0:00:40]} 24. Qxb5 {[%emt 0:00:18]} Rxb5 {[%emt 0:00:03]} 25. Rd2 {[%emt 0:00:13]} h5 {[%emt 0:00:06]} 26. Rad1 {[%emt 0:00:18]} Ra8 {[%emt 0:00:09]} 27. a3 {[%emt 0:00:16]} Rb3 {[%emt 0:00:25]} 28. Re1 {[%emt 0:00:17]} Kf8 {[%emt 0:00:26]} 29. Ree2 {[%emt 0:00:07]} Ra6 {[%emt 0:00:15]} 30. Kg1 {[%emt 0:00:10]} Rc6 {[%emt 0:00:10]} 31. Kf1 {[%emt 0:00:12]} Rc4 {[%emt 0:00:07]} 32. Ke1 {[%emt 0:00:06]} Bh6 {[%emt 0:00:11]} 33. g3 {[%emt 0:00:07]} Bg7 {[%emt 0:00:02]} 34. Kd1 {[%emt 0:00:03]} Rb5 {[%emt 0:00:11]} 35. Kc2 {[%emt 0:00:11]} d5 {[%emt 0:00:32]} 36. b3 {[%emt 0:00:12]} Rxc3+ {[%emt 0:00:05]} 37. Kd1 {[%emt 0:00:03]} Rbxb3 {[%emt 0:00:03]} 38. Rxd5 {[%emt 0:00:13]} Rxe3 {[%emt 0:00:10]} 39. Rd8# {[%emt 0:00:03]} 1-0

[Event "European Online Club-ch-I 2021"]
[Site "Online"]
[Date "2021.03.27"]
[Round "5.5"]
[White "Iskandarov, Misratdin"]
[Black "Anton Guijarro, David"]
[Result "1-0"]
[ECO "B11"]
[WhiteElo "2535"]
[BlackElo "2673"]
[Annotator "ChessBase"]
[PlyCount "63"]
[EventDate "2021.03.27"]
[EventType "team-tourn"]
[EventCountry "NET"]
[SourceTitle "playchess.com"]
[Source "ChessBase"]
[SourceQuality "1"]
[TimeControl "900+5"]

1. e4 {[%emt 0:00:00]} c6 {[%emt 0:00:12]} 2. Nc3 {[%emt 0:00:03]} d5 {[%emt 0:00:07]} 3. Nf3 {[%emt 0:00:02]} dxe4 {[%emt 0:00:21]} 4. Nxe4 {[%emt 0:00:02]} Nf6 {[%emt 0:00:01]} 5. Qe2 {[%emt 0:00:03]} Nxe4 {[%emt 0:00:15]} 6. Qxe4 {[%emt 0:00:02]} Nd7 {[%emt 0:00:12]} 7. Bc4 {[%emt 0:00:04]} Nf6 {[%emt 0:00:05]} 8. Ne5 {[%emt 0:00:02]} e6 {[%emt 0:00:02]} 9. Qe2 {[%emt 0:00:02]} b5 {[%emt 0:01:35]} 10. Bd3 {[%emt 0:00:05]} Qc7 {[%emt 0:01:19]} 11. a4 {[%emt 0:00:14]} Bd6 {[%emt 0:01:07]} 12. Nxc6 {[%emt 0:00:06]} b4 {[%emt 0:00:02]} 13. Nd4 {[%emt 0:00:02]} a6 {[%emt 0:00:09]} 14. b3 {[%emt 0:00:50]} O-O {[%emt 0:00:48]} 15. Bb2 {[%emt 0:04:22]} e5 {[%emt 0:00:04]} 16. Nf5 {[%emt 0:00:04]} e4 {[%emt 0:00:21]} 17. Nxd6 {[%emt 0:01:10]} exd3 {[%emt 0:00:05]} 18. Qxd3 {[%emt 0:02:15]} Qe7+ {[%emt 0:03:38]} 19. Kf1 {[%emt 0:00:07]} Rd8 {[%emt 0:00:30]} 20. Nf5 {[%emt 0:00:32]} Bxf5 {[%emt 0:00:33]} 21. Qxf5 {[%emt 0:00:03]} Ne4 {[%emt 0:00:38]} 22. Kg1 {[%emt 0:01:20]} Nxd2 {[%emt 0:00:08]} 23. h4 {[%emt 0:00:13]} Rac8 {[%emt 0:00:23]} 24. Rh3 {[%emt 0:00:31]} Rc5 {[%emt 0:00:02]} 25. Qg4 {[%emt 0:00:12]} f5 {[%emt 0:00:23]} 26. Qxb4 {[%emt 0:01:02]} a5 {[%emt 0:00:25]} 27. Qf4 {[%emt 0:00:12]} Rxc2 {[%emt 0:00:15]} 28. Re3 {[%emt 0:00:17]} Qf7 {[%emt 0:00:58]} 29. Bxg7 {[%emt 0:01:08]} Ne4 {[%emt 0:00:35]} 30. Bh6 {[%emt 0:00:19]} Qg6 {[%emt 0:00:34]} 31. Rf1 {[%emt 0:00:18]} Rdd2 {[%emt 0:00:47]} 32. Rxe4 {[%emt 0:00:09]} 1-0

[Event "European Online Club-ch-I 2021"]
[Site "Online"]
[Date "2021.03.27"]
[Round "5.6"]
[White "Mchedlishvili, Mikheil"]
[Black "Ibrahimov, Rasul"]
[Result "1-0"]
[ECO "B52"]
[WhiteElo "2570"]
[BlackElo "2527"]
[Annotator "ChessBase"]
[PlyCount "71"]
[EventDate "2021.03.27"]
[EventType "team-tourn"]
[EventCountry "NET"]
[SourceTitle "playchess.com"]
[Source "ChessBase"]
[SourceQuality "1"]
[TimeControl "900+5"]

1. e4 {[%emt 0:03:29]} c5 {[%emt 0:00:05]} 2. Nf3 {[%emt 0:00:35]} d6 {[%emt 0:00:03]} 3. Bb5+ {[%emt 0:00:05]} Bd7 {[%emt 0:00:04]} 4. Bxd7+ {[%emt 0:00:02]} Nxd7 {[%emt 0:00:02]} 5. O-O {[%emt 0:00:04]} Ngf6 {[%emt 0:00:03]} 6. Qe2 {[%emt 0:00:02]} Rc8 {[%emt 0:00:38]} 7. c3 {[%emt 0:00:13]} e6 {[%emt 0:00:06]} 8. d4 {[%emt 0:00:03]} cxd4 {[%emt 0:00:05]} 9. cxd4 {[%emt 0:00:13]} d5 {[%emt 0:00:02]} 10. e5 {[%emt 0:00:02]} Ng8 {[%emt 0:00:20]} 11. Nc3 {[%emt 0:00:06]} a6 {[%emt 0:00:15]} 12. Qd3 {[%emt 0:00:25]} Ne7 {[%emt 0:00:17]} 13. Bg5 {[%emt 0:00:44]} h6 {[%emt 0:00:04]} 14. Bd2 {[%emt 0:00:15]} Nc6 {[%emt 0:00:26]} 15. Ne2 {[%emt 0:00:05]} Qb6 {[%emt 0:00:15]} 16. Bc3 {[%emt 0:00:46]} Be7 {[%emt 0:00:40]} 17. Nf4 {[%emt 0:00:06]} Nb4 {[%emt 0:02:07]} 18. Qd2 {[%emt 0:00:10]} h5 {[%emt 0:00:06]} 19. Nh3 {[%emt 0:00:23]} Nf8 {[%emt 0:00:30]} 20. a3 {[%emt 0:00:28]} Nc6 {[%emt 0:00:03]} 21. Rac1 {[%emt 0:00:02]} h4 {[%emt 0:00:34]} 22. Qf4 {[%emt 0:00:49]} Ng6 {[%emt 0:01:45]} 23. Qg4 {[%emt 0:00:02]} Rc7 {[%emt 0:00:05]} 24. Nfg5 {[%emt 0:00:18]} Rh6 {[%emt 0:00:56]} 25. Kh1 {[%emt 0:00:19]} Bd8 {[%emt 0:01:01]} 26. Rcd1 {[%emt 0:00:50]} Nce7 {[%emt 0:00:06]} 27. Nxf7 {[%emt 0:01:23]} Kxf7 {[%emt 0:00:11]} 28. Ng5+ {[%emt 0:00:02]} Kg8 {[%emt 0:00:18]} 29. Nxe6 {[%emt 0:00:02]} Rc6 {[%emt 0:00:45]} 30. Ng5 {[%emt 0:00:02]} Qc7 {[%emt 0:01:48]} 31. f4 {[%emt 0:00:05]} Nh8 {[%emt 0:01:28]} 32. f5 {[%emt 0:00:06]} Qc8 {[%emt 0:00:25]} 33. e6 {[%emt 0:00:35]} Rf6 {[%emt 0:00:39]} 34. Qxh4 {[%emt 0:00:11]} Rh6 {[%emt 0:00:13]} 35. Qg4 {[%emt 0:00:06]} Rf6 {[%emt 0:00:08]} 36. Qh5 {[%emt 0:00:13]} 1-0

[Event "European Online Club-ch-I 2021"]
[Site "Online"]
[Date "2021.03.27"]
[Round "5.7"]
[White "Muradli, Mahammad"]
[Black "Ibarra Jerez, Jose Carlos"]
[Result "1-0"]
[ECO "A21"]
[WhiteElo "2449"]
[BlackElo "2553"]
[Annotator "ChessBase"]
[PlyCount "75"]
[EventDate "2021.03.27"]
[EventType "team-tourn"]
[EventCountry "NET"]
[SourceTitle "playchess.com"]
[Source "ChessBase"]
[SourceQuality "1"]
[TimeControl "900+5"]

1. d4 {[%emt 0:00:00]} d6 {[%emt 0:00:09]} 2. c4 {[%emt 0:00:03]} e5 {[%emt 0:00:03]} 3. Nc3 {[%emt 0:00:01]} exd4 {[%emt 0:00:23]} 4. Qxd4 {[%emt 0:00:03]} Nc6 {[%emt 0:00:01]} 5. Qd2 {[%emt 0:00:03]} Nf6 {[%emt 0:00:26]} 6. g3 {[%emt 0:01:41]} Be6 {[%emt 0:00:20]} 7. Nd5 {[%emt 0:00:19]} g6 {[%emt 0:00:28]} 8. b3 {[%emt 0:01:10]} Bg7 {[%emt 0:00:25]} 9. Bb2 {[%emt 0:00:11]} O-O {[%emt 0:00:27]} 10. Bg2 {[%emt 0:00:08]} Re8 {[%emt 0:00:15]} 11. e3 {[%emt 0:02:13]} Ne5 {[%emt 0:00:36]} 12. Ne2 {[%emt 0:02:10]} c6 {[%emt 0:00:53]} 13. Nxf6+ {[%emt 0:03:16]} Qxf6 {[%emt 0:00:04]} 14. Nf4 {[%emt 0:04:04]} Bg4 {[%emt 0:00:57]} 15. O-O {[%emt 0:00:16]} Rad8 {[%emt 0:01:47]} 16. h3 {[%emt 0:00:11]} Bf3 {[%emt 0:00:28]} 17. Qc2 {[%emt 0:00:16]} g5 {[%emt 0:01:05]} 18. Bxe5 {[%emt 0:00:03]} dxe5 {[%emt 0:00:03]} 19. Bxf3 {[%emt 0:00:01]} exf4 {[%emt 0:00:03]} 20. exf4 {[%emt 0:00:01]} gxf4 {[%emt 0:00:03]} 21. Rad1 {[%emt 0:00:10]} Rxd1 {[%emt 0:00:32]} 22. Qxd1 {[%emt 0:00:02]} Rd8 {[%emt 0:00:19]} 23. Qe1 {[%emt 0:00:14]} Bf8 {[%emt 0:01:01]} 24. g4 {[%emt 0:00:06]} Bc5 {[%emt 0:00:44]} 25. Kg2 {[%emt 0:00:02]} Qb2 {[%emt 0:00:30]} 26. h4 {[%emt 0:00:12]} Qxa2 {[%emt 0:00:32]} 27. Qe5 {[%emt 0:00:05]} Qa5 {[%emt 0:00:40]} 28. Qg5+ {[%emt 0:00:02]} Kf8 {[%emt 0:00:20]} 29. Qh6+ {[%emt 0:00:01]} Kg8 {[%emt 0:00:01]} 30. Be4 {[%emt 0:00:03]} f5 {[%emt 0:00:35]} 31. Bxf5 {[%emt 0:00:08]} f3+ {[%emt 0:00:01]} 32. Kh3 {[%emt 0:00:09]} Bd4 {[%emt 0:02:14]} 33. Qxh7+ {[%emt 0:00:06]} Kf8 {[%emt 0:00:01]} 34. Be6 {[%emt 0:00:06]} Bg7 {[%emt 0:00:28]} 35. Qg8+ {[%emt 0:00:02]} Ke7 {[%emt 0:00:01]} 36. Qf7+ {[%emt 0:00:01]} Kd6 {[%emt 0:00:01]} 37. Rd1+ {[%emt 0:00:02]} Kc5 {[%emt 0:00:23]} 38. Qf5+ {[%emt 0:00:02]} 1-0